bitfinex/quotes_ETHUSD_20250715
["timestamp","ask_amount","ask_price","bid_price","bid_amount"]
[1752567681246,0.7941,2963.8,2963.2,5.428]
[1752567681448,0.04,2963.9,2963.7,3.37413698]
[1752567681706,0.04,2963.9,2963.8,3.37404683]
[1752567681915,0.04,2963.9,2963.8,0.168]
[1752567682548,0.04,2963.9,2963.8,3.54204683]
[1752567683385,0.04,2963.9,2963.8,8.96404683]
[1752567684686,10.8217,2963.9,2962.7,9.80830103]
[1752567684890,10.0,2963.5,2962.9,3.37498456]
[1752567685093,10.0,2963.5,2962.7,13.18349331]
[1752567685094,13.37450226,2963.4,2963.3,0.168]
[1752567685314,3.37473002,2963.2,2962.8,0.168]
[1752567685470,10.0,2963.1,2962.8,0.168]
[1752567685672,11.354273,2963.1,2962.8,0.168]
[1752567686059,1.354273,2963.1,2962.8,0.168]
[1752567686551,3.37486666,2963.1,2962.8,0.168]
[1752567686750,10.0,2963.2,2962.8,0.168]
[1752567686751,3.37475808,2963.2,2962.8,0.168]
[1752567687495,10.0,2963.2,2962.8,0.168]
[1752567687696,3.37447771,2963.5,2962.8,3.37509646]
[1752567687997,10.0,2963.7,2962.9,8.7850546]
[1752567688165,13.37416576,2963.7,2963.3,0.168]
[1752567688568,10.0,2963.7,2963.3,0.168]
[1752567688772,1.25017,2963.8,2963.4,3.37446865]
[1752567688773,1.08217,2963.8,2963.4,3.37446865]
[1752567689097,0.04,2963.9,2963.5,0.168]
[1752567689281,0.04,2963.9,2963.7,0.168]
[1752567689955,0.04,2963.9,2963.7,8.94814373]
[1752567690155,0.04,2963.9,2963.7,5.574]
[1752567690407,0.04,2963.9,2963.7,8.94715563]
[1752567690695,0.04,2963.9,2963.8,3.37404683]
[1752567691056,0.04,2963.9,2963.8,3.92404683]
[1752567691995,0.04,2963.9,2963.8,5.98932459]
[1752567693192,0.04,2963.9,2963.8,9.33004683]
[1752567693697,0.04,2963.9,2963.8,9.32904683]
[1752567694297,0.001,2964.4,2963.8,14.33685683]
[1752567694592,0.001,2964.4,2963.7,3.37416015]
[1752567694593,0.001,2964.4,2964.3,11.36764368]
[1752567694804,0.001,2964.4,2964.3,16.76864368]
[1752567694959,0.001,2964.4,2964.3,18.78286719]
[1752567695672,1e-08,2964.4,2964.3,23.54286719]
[1752567695873,1e-08,2964.4,2964.3,18.14186719]
[1752567696100,1e-08,2964.4,2964.3,14.08047771]
[1752567696300,1e-08,2964.4,2963.8,0.2519368]
[1752567696610,1e-08,2964.4,2962.8,10.81929974]
[1752567696811,4.16247559,2964.1,2962.6,8.099]
[1752567697013,4.16247559,2964.1,2962.5,3.37547103]
[1752567697014,10.0,2963.5,2963.0,3.37489222]
[1752567697212,10.0,2963.5,2962.8,3.37515109]
[1752567697213,10.0,2963.3,2962.8,8.77111011]
[1752567697509,10.7887,2963.8,2962.8,5.64552264]
[1752567697674,1.61847,2963.7,2962.8,5.64552264]
[1752567697875,3.37435209,2963.6,2962.9,5.395]
[1752567698076,1.61847,2963.7,2962.8,5.395]
[1752567698390,10.0,2963.5,2963.0,3.37489092]
[1752567699325,10.0,2963.6,2962.8,5.64504072]
[1752567699481,0.7887,2963.8,2962.9,0.90203092]
[1752567699681,0.7887,2963.8,2963.0,3.37495781]
[1752567699885,0.7887,2963.8,2963.5,3.37429063]
[1752567700217,0.7887,2963.8,2963.6,3.37425945]
[1752567700374,10.0,2963.9,2963.6,3.37420074]
[1752567700575,10.0,2963.9,2963.5,3.37431726]
[1752567700812,10.0,2963.9,2963.1,5.392]
[1752567700813,10.7698,2964.1,2963.8,3.37403196]
[1752567700998,0.7698,2964.1,2963.8,3.37403196]
[1752567701202,10.7698,2964.1,2963.8,3.37403196]
[1752567701398,0.7698,2964.1,2964.0,3.37381916]
[1752567701587,1e-08,2964.4,2964.2,3.373581]
[1752567701588,0.82840001,2964.4,2964.2,3.373581]
[1752567701915,1e-08,2964.4,2964.3,3.37347771]
[1752567702213,1e-08,2964.4,2964.3,3.62757991]
[1752567702416,1e-08,2964.4,2964.3,5.41669689]
[1752567702580,1e-08,2964.4,2964.3,5.45043166]
[1752567703620,1e-08,2964.4,2964.3,5.41669689]
[1752567703794,1e-08,2964.4,2964.3,5.45043166]
[1752567704010,1e-08,2964.4,2964.3,5.58469689]
[1752567704199,1e-08,2964.4,2964.3,5.61843166]
[1752567704579,0.04,2964.9,2964.8,3.92290879]
[1752567704782,0.04,2964.9,2964.8,9.30890879]
[1752567705019,0.04,2964.9,2964.8,11.48951858]
[1752567705727,0.04,2964.9,2964.8,6.10351858]
[1752567705891,0.04,2964.9,2964.8,11.48851858]
[1752567706630,0.04,2964.9,2964.8,6.10351858]
[1752567706832,0.04,2964.9,2964.8,11.48451858]
[1752567707012,0.04,2964.9,2964.8,3.54090879]
[1752567707215,0.04,2964.9,2964.8,8.92090879]
[1752567707410,0.04,2964.9,2964.8,9.47090879]
[1752567708799,0.04,2964.9,2964.8,16.91507476]
[1752567710398,1e-08,2964.9,2964.8,16.91507476]
[1752567710612,1e-08,2964.9,2964.8,19.28118686]
[1752567710804,1e-08,2965.1,2964.9,0.55]
[1752567711016,1e-08,2965.1,2965.0,9.32840809]
[1752567711326,1e-08,2965.1,2965.0,9.46268128]
[1752567711725,0.001,2965.7,2965.0,9.46268128]
[1752567711726,0.001,2965.7,2965.5,11.36627859]
[1752567711899,0.001,2965.7,2965.5,18.20912945]
[1752567712100,0.001,2965.7,2965.5,18.37712945]
[1752567712717,0.001,2965.7,2965.5,10.21696348]
[1752567712917,0.001,2965.7,2965.5,8.74311262]
[1752567713091,0.001,2965.7,2965.5,9.29311262]
[1752567713931,0.001,2965.7,2965.5,3.92211262]
[1752567714148,0.001,2965.7,2965.5,9.29111262]
[1752567717345,1e-08,2965.7,2965.6,3.92199892]
[1752567717512,1e-08,2965.7,2965.6,12.66619602]
[1752567717718,1e-08,2965.7,2965.6,12.63247604]
[1752567718513,1e-08,2965.9,2965.8,3.92177152]
[1752567718713,1e-08,2965.9,2965.8,9.31548923]
[1752567718919,1e-08,2965.9,2965.8,11.42155647]
[1752567719141,0.001,2966.8,2966.7,3.37074864]
[1752567719352,0.001,2966.8,2966.7,8.76345612]
[1752567719562,0.001,2966.8,2966.7,0.25181414]
[1752567719861,0.7718,2966.8,2966.4,5.358]
[1752567720021,0.7718,2966.8,2966.4,5.357]
[1752567720220,1.87803,2966.8,2966.4,0.25659398]
[1752567720417,10.0,2966.7,2966.2,8.72831608]
[1752567720638,1.87803,2966.8,2966.1,5.357]
[1752567720860,0.7708,2966.7,2964.7,3.5390913]
[1752567721062,0.7708,2965.9,2964.9,5.357]
[1752567721358,0.7708,2965.9,2965.5,3.37202769]
[1752567721604,0.7708,2965.9,2965.8,3.37177152]
[1752567721863,3.3711176,2966.4,2965.8,3.37170737]
[1752567722070,0.7708,2966.5,2965.9,0.03371657]
[1752567722219,0.7708,2966.5,2966.4,3.37108953]
[1752567722760,0.001,2966.8,2966.7,3.37074864]
[1752567723258,0.001,2966.8,2966.7,4.08874864]
[1752567723654,0.001,2966.8,2966.7,4.12245612]
[1752567723860,0.001,2966.8,2966.7,10.76218759]
[1752567724061,0.001,2966.8,2966.7,10.72848011]
[1752567725263,1e-08,2966.8,2966.7,12.75448011]
[1752567725820,1e-08,2966.9,2966.8,3.92063502]
[1752567726147,1e-08,2966.9,2966.8,6.46704899]
[1752567726721,1e-08,2966.9,2966.8,6.50075534]
[1752567727444,1e-08,2966.9,2966.8,6.46704899]
[1752567728137,1e-08,2966.9,2966.8,11.81304899]
[1752567728338,1e-08,2966.9,2966.8,11.81204899]
[1752567728658,0.04,2967.9,2967.8,3.91949929]
[1752567728858,0.04,2967.9,2967.8,9.43249929]
[1752567729057,0.04,2967.9,2967.8,10.32132417]
[1752567729646,1e-08,2968.0,2967.9,3.91938576]
[1752567730730,1e-08,2968.0,2967.8,0.168]
[1752567731262,1e-08,2968.0,2967.9,3.95307961]
[1752567731662,1e-08,2968.0,2967.9,3.91938576]
[1752567732375,1e-08,2968.0,2967.9,3.95307961]
[1752567732673,1e-08,2968.0,2967.9,5.2026435]
[1752567732968,1e-08,2968.0,2967.9,3.91938576]
[1752567733935,1e-08,2968.0,2967.9,3.95307961]
[1752567734171,1e-08,2968.0,2967.9,3.91938576]
[1752567734394,1e-08,2968.0,2967.9,9.29707961]
[1752567734574,1e-08,2968.0,2967.9,9.26338576]
[1752567734742,1e-08,2968.0,2967.9,10.56852029]
[1752567735606,1e-08,2968.0,2967.9,10.56652029]
[1752567735944,1e-08,2968.0,2967.9,5.22452029]
[1752567736141,1e-08,2968.0,2967.9,10.56452029]
[1752567736782,1e-08,2968.0,2967.9,18.00868626]
[1752567736982,1e-08,2968.0,2967.9,20.36987567]
[1752567737596,1e-08,2968.0,2967.9,20.36587567]
[1752567738486,1e-08,2968.0,2967.9,20.36487567]
[1752567739302,1e-08,2968.0,2967.9,10.55852029]
[1752567739505,1e-08,2968.0,2967.9,3.36938576]
[1752567740180,1e-08,2968.0,2967.8,0.41846175]
[1752567740365,1e-08,2968.0,2967.8,3.78789247]
[1752567740703,0.7973,2967.7,2967.1,3.37020617]
[1752567741016,0.7973,2967.7,2967.5,0.168]
[1752567742510,0.7973,2967.7,2967.5,3.53783926]
[1752567742679,0.7973,2967.7,2967.6,3.36972637]
[1752567742883,0.16800001,2968.0,2967.9,3.36938576]
[1752567742884,0.83180001,2968.0,2967.9,3.36938576]
[1752567743194,0.83180001,2968.0,2967.9,3.53738576]
[1752567743862,1e-08,2968.0,2967.9,4.08738576]
[1752567745600,1e-08,2968.0,2967.9,4.12107961]
[1752567745800,1e-08,2968.0,2967.9,6.11222552]
[1752567746999,1e-08,2968.0,2967.9,4.08738576]
[1752567747313,1e-08,2968.0,2967.9,9.41538576]
[1752567748983,1e-08,2968.0,2967.9,4.08738576]
[1752567749190,1e-08,2968.0,2967.9,9.41438576]
[1752567749388,1e-08,2968.0,2967.9,16.83720859]
[1752567749593,1e-08,2968.0,2967.9,18.85787897]
[1752567751317,0.04,2968.9,2968.8,3.36836432]
[1752567751522,0.04,2968.9,2968.8,3.53636432]
[1752567752122,0.04,2968.9,2968.8,0.168]
[1752567752321,0.7726,2968.8,2968.4,3.36877865]
[1752567752521,0.7726,2968.7,2967.6,0.35377264]
[1752567752724,0.7795,2968.2,2967.9,0.168]
[1752567752942,14.14857429,2968.2,2967.7,0.168]
[1752567753099,0.7795,2968.2,2967.7,0.168]
[1752567753302,0.7795,2968.2,2967.9,0.168]
[1752567753503,0.7795,2968.2,2967.9,3.5373435]
[1752567753725,0.7795,2968.2,2967.9,0.168]
[1752567753924,1.85745,2968.2,2967.9,0.168]
[1752567754256,0.7795,2968.2,2967.9,0.168]
[1752567754636,0.7795,2968.2,2968.0,3.36927223]
[1752567754839,0.7795,2968.2,2968.0,3.3692171]
[1752567755044,0.7795,2968.2,2967.9,3.53732777]
[1752567755358,0.7795,2968.2,2967.9,0.168]
[1752567755526,1.07795,2968.1,2968.0,3.36924313]
[1752567755729,0.7795,2968.2,2967.9,3.36935451]
[1752567756454,0.7795,2968.2,2968.1,3.36915872]
[1752567757253,0.7795,2968.2,2967.7,0.168]
[1752567757448,0.7795,2968.2,2968.1,3.36915872]
[1752567758452,0.7795,2968.2,2968.1,3.53715872]
[1752567758653,0.7598,2968.8,2968.7,3.36846148]
[1752567758839,0.9278,2968.8,2968.6,3.36854464]
[1752567759152,0.7598,2968.8,2968.7,3.36847778]
[1752567759385,0.7598,2968.8,2968.7,3.53647778]
[1752567759946,0.04,2968.9,2968.8,3.36836432]
[1752567760185,0.04,2968.9,2968.8,3.53636432]
[1752567760641,0.04,2968.9,2968.8,3.57004796]
[1752567761060,0.04,2968.9,2968.8,4.56707529]
[1752567761259,0.04,2968.9,2968.8,3.53636432]
[1752567762250,0.04,2968.9,2968.8,4.08636432]
[1752567764086,0.001,2969.2,2969.1,3.36802398]
[1752567764286,0.001,2969.2,2969.1,3.40170421]
[1752567764493,0.001,2969.2,2969.1,3.56970421]
[1752567764679,0.001,2969.2,2969.1,6.08657003]
[1752567764877,0.001,2970.1,2969.1,2.16854605]
[1752567765202,0.001,2970.1,2969.9,3.36703264]
[1752567765359,0.7886,2970.1,2970.0,3.53500336]
[1752567765787,0.001,2970.1,2970.0,3.53500336]
[1752567766916,0.001,2970.1,2970.0,0.168]
[1752567767220,1.33777236,2970.1,2970.0,3.36700336]
[1752567767375,0.001,2970.1,2970.0,3.36700336]
[1752567767578,0.001,2970.1,2970.0,4.08500336]
[1752567768072,0.001,2970.1,2970.0,3.53500336]
[1752567769284,0.2495,2970.4,2970.3,3.9166633]
[1752567769490,0.2495,2970.4,2970.3,9.2346633]
[1752567769717,0.2495,2970.4,2970.3,9.4026633]
[1752567769886,0.2495,2970.4,2970.3,18.10242952]
[1752567769887,1e-08,2970.4,2970.3,18.10242952]
[1752567770090,1e-08,2970.4,2970.3,12.78442952]
[1752567770319,1e-08,2970.4,2970.3,5.36160669]
[1752567770530,1e-08,2970.4,2970.3,3.5346633]
[1752567770717,1e-08,2970.4,2970.3,9.43732993]
[1752567770923,1e-08,2970.4,2970.3,9.4036633]
[1752567771537,0.001,2971.3,2970.3,8.8536633]
[1752567771823,0.001,2971.3,2971.2,3.53364351]
[1752567772026,0.001,2971.3,2971.2,8.86764351]
[1752567772633,0.001,2971.3,2971.2,5.30698312]
[1752567772836,0.001,2971.3,2971.2,8.86564351]
[1752567773187,0.001,2971.3,2971.2,4.08364351]
[1752567773729,0.001,2971.3,2971.2,11.50646634]
[1752567773929,0.001,2971.3,2971.2,4.08364351]
[1752567774091,0.001,2971.3,2971.2,8.86864351]
[1752567774298,0.001,2971.3,2971.2,10.64208321]
[1752567774504,0.04,2971.9,2971.8,3.36496399]
[1752567774817,0.04,2971.9,2971.8,0.168]
[1752567775434,0.04,2971.9,2971.8,3.53296399]
[1752567776014,13.40485076,2971.9,2971.8,0.168]
[1752567776217,1.45987508,2971.9,2971.6,5.352]
[1752567776433,1.45987508,2971.9,2971.5,0.168]
[1752567776620,0.04,2971.9,2971.7,0.168]
[1752567776818,0.04,2971.9,2971.7,3.53304674]
[1752567777020,0.04,2971.9,2971.7,0.168]
[1752567777417,0.04,2971.9,2971.7,3.53302346]
[1752567777822,0.04,2971.9,2971.7,0.168]
[1752567778045,0.04,2971.9,2971.8,3.36496399]
[1752567779430,0.04,2971.9,2971.7,0.168]
[1752567779431,0.04,2971.9,2971.7,3.53302123]
[1752567779745,10.04,2971.9,2971.7,0.168]
[1752567779949,1.34057746,2971.8,2971.7,0.168]
[1752567780249,3.36496399,2971.8,2971.7,0.168]
[1752567780550,0.772,2971.7,2971.5,0.42202622]
[1752567780746,0.772,2971.7,2971.5,0.168]
[1752567781450,0.772,2971.7,2971.5,3.53321972]
[1752567781755,0.772,2971.7,2971.5,0.168]
[1752567781960,4.13717199,2971.7,2971.5,0.168]
[1752567782360,0.772,2971.7,2971.5,0.168]
[1752567782568,0.041,2971.9,2971.3,0.0336553]
[1752567782768,0.041,2971.9,2971.6,3.53313697]
[1752567783061,0.041,2971.9,2971.6,0.168]
[1752567783639,0.041,2971.9,2971.6,3.53313203]
[1752567784403,0.041,2971.9,2971.8,0.168]
[1752567785392,0.041,2971.9,2971.8,3.53296399]
[1752567785611,0.041,2971.9,2971.8,4.80640842]
[1752567785788,0.041,2971.9,2971.8,10.14140842]
[1752567785988,0.041,2971.9,2971.8,10.10775879]
[1752567789529,0.041,2971.9,2971.8,10.10075879]
[1752567790238,1e-08,2972.0,2971.9,3.36485076]
[1752567790435,0.04,2972.9,2972.8,3.36383207]
[1752567790796,0.04,2972.9,2972.8,3.53183207]
[1752567791294,0.04,2972.9,2972.8,9.40883207]
[1752567792044,0.04,2972.9,2972.8,9.72089041]
[1752567792194,0.04,2972.9,2972.8,11.02937328]
[1752567792395,0.04,2972.9,2972.8,11.02958205]
[1752567793011,0.04,2972.9,2972.8,11.02946397]
[1752567794131,1e-08,2972.9,2972.8,11.02946397]
[1752567794431,1e-08,2972.9,2972.8,5.70246397]
[1752567794636,1e-08,2972.9,2972.8,11.02346397]
[1752567795335,1e-08,2972.9,2972.8,5.70246397]
[1752567795639,1e-08,2972.9,2972.8,11.05910229]
[1752567795797,1e-08,2972.9,2972.8,11.02546397]
[1752567797032,1e-08,2972.9,2972.8,15.47494521]
[1752567797239,1e-08,2972.9,2972.8,11.02146397]
[1752567798514,1e-08,2972.9,2972.8,11.02181122]
[1752567798707,1e-08,2972.9,2972.8,20.79429246]
[1752567798925,1e-08,2972.9,2972.8,20.62629246]
[1752567799107,1e-08,2972.9,2972.8,18.24388281]
[1752567799633,1e-08,2972.9,2972.8,12.92488281]
[1752567799837,1e-08,2972.9,2972.8,18.24088281]
[1752567800037,1e-08,2972.9,2972.8,5.53481122]
[1752567800214,1e-08,2972.9,2972.8,10.85081122]
[1752567800533,1e-08,2972.9,2972.8,5.53481122]
[1752567800740,1e-08,2972.9,2972.8,10.85081122]
[1752567801248,1e-08,2972.9,2972.8,10.84981122]
[1752567801404,1e-08,2972.9,2972.8,10.53731494]
[1752567801600,1e-08,2972.9,2972.8,10.85015152]
[1752567802051,1e-08,2972.9,2972.8,3.67666865]
[1752567802539,1e-08,2972.9,2972.8,3.71130697]
[1752567802700,0.00200001,2972.9,2972.8,4.26130697]
[1752567802903,0.00200001,2972.9,2972.8,4.22766865]
[1752567803105,0.00200001,2972.9,2972.8,5.94419975]
[1752567803935,0.00200001,2972.9,2972.8,8.67883207]
[1752567804203,0.00200001,2972.9,2972.8,0.001]
[1752567805102,0.00200001,2972.9,2972.8,3.36483207]
[1752567806644,0.00200001,2972.9,2972.8,3.39847039]
[1752567806948,0.00200001,2972.9,2972.8,3.36483207]
[1752567808409,0.00200001,2972.9,2972.8,4.58770957]
[1752567808735,0.00200001,2972.9,2972.8,4.62134789]
[1752567808932,0.00200001,2972.9,2972.8,4.75570957]
[1752567809313,0.00200001,2972.9,2972.8,10.10134789]
[1752567809509,0.00200001,2972.9,2972.8,10.06770957]
[1752567811545,1e-08,2972.9,2972.8,10.06770957]
[1752567813722,1e-08,2973.1,2973.0,3.91360578]
[1752567813912,1e-08,2973.1,2973.0,17.95079667]
[1752567814219,1e-08,2973.3,2973.2,3.91337952]
[1752567814421,1e-08,2973.3,2973.2,9.38437952]
[1752567816054,1e-08,2973.3,2973.2,8.83437952]
[1752567816250,1e-08,2973.3,2973.2,9.38437952]
[1752567816459,1e-08,2973.3,2973.2,11.53248583]
[1752567817573,1e-08,2973.3,2973.2,6.22948583]
[1752567817776,1e-08,2973.3,2973.2,9.38937952]
[1752567818295,0.002,2974.3,2973.3,0.55]
[1752567818445,0.002,2974.3,2973.6,0.55]
[1752567818646,0.002,2974.3,2974.0,3.53042682]
[1752567818851,0.002,2974.3,2974.1,3.36233591]
[1752567819092,0.002,2974.3,2974.0,3.53042714]
[1752567819591,0.002,2974.3,2974.2,3.36224867]
[1752567819962,0.002,2974.3,2974.2,3.53024867]
[1752567821140,0.002,2974.3,2974.2,4.08024867]
[1752567821362,0.002,2974.3,2974.2,10.75113179]
[1752567821567,0.002,2974.3,2974.2,10.71750931]
[1752567822158,0.002,2974.3,2974.2,20.48443408]
[1752567824054,0.002,2974.3,2974.2,15.12743408]
[1752567824279,0.002,2974.3,2974.2,3.53024867]
[1752567824496,0.002,2974.3,2974.2,8.88424867]
[1752567824802,0.002,2974.3,2974.2,9.43424867]
[1752567825512,0.002,2974.3,2974.2,4.08024867]
[1752567825671,0.002,2974.3,2974.2,9.46587115]
[1752567826002,0.002,2974.3,2974.2,5.36307156]
[1752567826204,0.002,2974.3,2974.2,10.71807156]
[1752567826405,0.002,2974.3,2974.2,20.48499633]
[1752567827297,1e-08,2974.4,2974.3,3.91213562]
[1752567827451,1e-08,2974.4,2974.3,6.68808459]
[1752567827652,1e-08,2974.4,2974.3,6.85608459]
[1752567829355,1e-08,2974.6,2974.5,3.91190956]
[1752567829784,1e-08,2974.6,2974.5,9.42690956]
[1752567830092,1e-08,2974.6,2974.5,11.31961123]
[1752567830450,1e-08,2974.6,2974.5,10.76961123]
[1752567830850,1e-08,2974.6,2974.5,11.31961123]
[1752567831592,1e-08,2974.6,2974.5,5.97261123]
[1752567831794,1e-08,2974.6,2974.5,10.76861123]
[1752567831959,1e-08,2974.6,2974.5,8.87590956]
[1752567832349,1e-08,2974.6,2974.5,0.168]
[1752567832596,1e-08,2974.6,2974.5,0.718]
[1752567832796,1e-08,2974.6,2974.5,6.059]
[1752567832998,1e-08,2974.6,2974.5,9.42090956]
[1752567833493,1e-08,2974.6,2974.5,0.168]
[1752567834659,0.79930001,2974.6,2974.5,0.168]
[1752567836403,3.36191959,2974.5,2973.4,3.36315329]
[1752567836698,0.79930001,2974.6,2974.2,0.168]
[1752567837005,0.79930001,2974.6,2974.4,0.168]
[1752567838703,0.79930001,2974.6,2974.4,3.52996514]
[1752567839877,0.79930001,2974.6,2974.4,3.52997912]
[1752567840282,0.79930001,2974.6,2974.5,3.36190956]
[1752567841077,1e-08,2974.6,2974.5,13.67883433]
[1752567841278,1e-08,2974.6,2974.5,15.93568119]
[1752567841607,1e-08,2974.6,2974.5,21.25968119]
[1752567841791,1e-08,2974.6,2974.5,26.01968119]
[1752567842108,0.042,2974.9,2974.8,3.91157052]
[1752567842297,0.042,2974.9,2974.8,9.40457052]
[1752567842496,0.042,2974.9,2974.8,10.68119506]
[1752567842810,0.042,2974.9,2974.8,5.61350163]
[1752567843580,0.042,2974.9,2974.8,10.93550163]
[1752567843781,0.042,2974.9,2974.8,5.61350163]
[1752567844100,0.042,2974.9,2974.8,10.93450163]
[1752567845607,0.042,2974.9,2974.8,5.61350163]
[1752567845774,0.042,2974.9,2974.8,10.93150163]
[1752567846501,0.042,2974.9,2974.8,5.61350163]
[1752567846686,0.042,2974.9,2974.8,15.68850163]
[1752567846687,1e-08,2974.9,2974.8,15.68850163]
[1752567847478,1e-08,2974.9,2974.8,10.37350163]
[1752567847722,1e-08,2974.9,2974.8,9.82350163]
[1752567847886,1e-08,2974.9,2974.8,9.09987709]
[1752567848414,1e-08,2974.9,2974.8,9.64987709]
[1752567848978,1e-08,2974.9,2974.8,9.09687709]
[1752567849337,1e-08,2974.9,2974.8,14.40887709]
[1752567851496,1e-08,2974.9,2974.8,14.57834984]
[1752567851692,1e-08,2974.9,2974.8,10.89087956]
[1752567851926,1e-08,2974.9,2974.8,9.09687709]
[1752567852076,1e-08,2974.9,2974.8,9.10087709]
[1752567852490,1e-08,2974.9,2974.8,9.65087709]
[1752567853813,1e-08,2974.9,2974.8,4.33687709]
[1752567854017,1e-08,2974.9,2974.8,9.64687709]
[1752567854241,0.76890001,2974.9,2974.8,5.73530657]
[1752567854429,0.76890001,2974.9,2974.8,0.25730657]
[1752567854739,0.76890001,2974.9,2974.6,3.52972946]
[1752567855309,0.76890001,2974.9,2974.7,3.36167384]
[1752567855549,0.76890001,2974.9,2974.6,3.52974136]
[1752567855922,0.76890001,2974.9,2974.7,3.36166277]
[1752567856442,0.76890001,2974.9,2974.8,3.36157052]
[1752567856747,1e-08,2974.9,2974.8,3.36157052]
[1752567857250,1e-08,2974.9,2974.8,3.52957052]
[1752567857604,1e-08,2974.9,2974.8,0.168]
[1752567858270,1e-08,2974.9,2974.6,5.73039892]
[1752567858405,1e-08,2974.9,2974.6,5.471]
[1752567858604,1e-08,2974.9,2974.6,5.71994161]
[1752567858845,1e-08,2974.9,2974.6,9.08173173]
[1752567859047,1e-08,2974.9,2974.6,5.71994161]
[1752567859246,1e-08,2974.9,2974.6,6.29193577]
[1752567859485,1e-08,2974.9,2974.6,9.65367877]
[1752567859621,1e-08,2974.9,2974.6,9.08168461]
[1752567860427,1e-08,2974.9,2974.7,3.36167744]
[1752567861027,1e-08,2974.9,2974.6,10.47994161]
[1752567861374,0.00554949,3067.3,2974.6,10.47994161]
[1752567861375,0.002,2976.1,2975.1,0.75030001]
[1752567861666,5.381,2976.1,2975.3,9.76692477]
[1752567861880,5.381,2976.1,2975.7,3.36046646]
[1752567862167,0.04,2976.9,2976.7,3.35942486]
[1752567862376,0.04,2976.9,2976.7,0.55]
[1752567862527,0.04,2976.9,2976.8,3.35931201]
[1752567862870,0.8167,2976.8,2975.4,4.33750191]
[1752567863074,10.8099,2976.2,2974.6,9.76692477]
[1752567863373,15.413,2976.1,2975.5,3.36070488]
[1752567863566,15.413,2976.1,2975.6,0.31394325]
[1752567863728,13.36051399,2975.8,2975.7,0.31394325]
[1752567863933,14.19221399,2975.8,2975.7,0.31394325]
[1752567864142,15.94746734,2975.8,2975.7,0.31394325]
[1752567864347,0.8317,2975.3,2974.7,3.36165896]
[1752567864669,10.0,2975.1,2974.7,3.36163371]
[1752567864867,5.413,2975.0,2974.9,3.36145752]
[1752567865041,0.8317,2975.3,2975.2,3.36111858]
[1752567865222,6.2447,2975.3,2975.1,3.36122555]
[1752567865428,0.8317,2975.3,2975.1,3.36122555]
[1752567865630,5.413,2975.2,2974.3,3.36211091]
[1752567865829,5.413,2975.2,2974.8,3.36146447]
[1752567866530,5.413,2975.2,2974.9,3.36144335]
[1752567867138,5.413,2975.2,2974.8,3.36155426]
[1752567867345,5.413,2975.2,2974.6,0.24620333]
[1752567867543,5.413,2975.2,2974.9,3.36137741]
[1752567867773,5.408,2975.1,2974.9,3.36138856]
[1752567867968,0.8317,2975.3,2974.8,3.36153124]
[1752567868173,5.406,2975.2,2974.9,3.36138647]
[1752567868478,5.406,2975.1,2975.0,3.36133878]
[1752567868632,5.406,2975.1,2974.5,0.001]
[1752567868832,5.406,2975.1,2974.6,0.44372864]
[1752567869158,5.00259716,2975.1,2975.0,3.36134453]
[1752567869344,0.002,2975.2,2975.1,3.36123155]
[1752567869669,0.002,2975.2,2975.1,3.91123155]
[1752567870060,5.407,2975.2,2975.1,3.91123155]
[1752567870255,5.405,2975.2,2975.1,4.97462408]
[1752567870572,0.002,2975.2,2975.1,4.97462408]
[1752567870774,5.403,2975.2,2975.1,4.97462408]
[1752567870961,5.403,2975.2,2974.7,0.55]
[1752567871271,5.403,2975.2,2975.0,3.36125832]
[1752567872269,0.002,2975.2,2975.0,3.36129137]
[1752567872478,5.4,2975.1,2974.9,3.52938847]
[1752567872771,5.4,2975.1,2975.0,3.36134453]
[1752567873535,0.002,2975.2,2975.0,3.36134453]
[1752567873793,5.4,2975.1,2975.0,3.36134453]
[1752567874266,5.394,2975.1,2975.0,3.36134453]
[1752567874669,0.002,2975.2,2975.0,3.36134453]
[1752567874875,0.002,2975.2,2975.1,3.36123155]
[1752567875074,5.395,2975.2,2975.1,3.36123155]
[1752567875275,5.394,2975.2,2975.1,3.36123155]
[1752567875475,5.394,2975.2,2974.9,0.168]
[1752567876190,5.562,2975.2,2974.8,3.36156864]
[1752567877383,8.92314366,2975.2,2974.7,0.168]
[1752567877591,5.562,2975.2,2974.7,3.52958951]
[1752567877791,8.92314007,2975.2,2974.7,3.52958951]
[1752567877976,5.562,2975.2,2974.8,3.36155793]
[1752567878875,5.562,2975.2,2974.9,3.36143853]
[1752567879076,5.562,2975.2,2974.9,3.36143743]
[1752567879598,0.17,2975.2,2974.9,3.36143743]
[1752567879785,0.17,2975.2,2974.9,3.36139618]
[1752567879969,5.379,2975.1,2974.9,3.36139618]
[1752567880182,5.379,2975.1,2974.8,3.36152839]
[1752567880378,5.379,2975.1,2974.8,3.36148648]
[1752567880559,5.379,2975.1,2974.9,3.36145434]
[1752567880888,5.379,2975.1,2974.7,3.52961812]
[1752567881691,5.374,2975.0,2974.7,3.52961812]
[1752567881878,5.374,2975.0,2974.7,8.28961812]
[1752567882194,5.374,2975.0,2974.8,3.36148]
[1752567882500,5.374,2975.0,2974.7,4.928]
[1752567882671,5.374,2975.0,2974.9,3.36145752]
[1752567882866,0.002,2975.2,2975.1,3.91123155]
[1752567883070,5.375,2975.2,2975.1,3.94484386]
[1752567883400,5.375,2975.2,2975.1,4.07923155]
[1752567883555,0.002,2975.2,2975.1,4.07923155]
[1752567883758,5.374,2975.2,2975.1,5.4157994]
[1752567884080,0.002,2975.2,2975.1,5.4157994]
[1752567884257,5.372,2975.2,2975.1,5.4157994]
[1752567884462,5.371,2975.2,2975.1,5.4157994]